bitfinex-derivatives/quotes_BTCF0:USTF0_20241110
["timestamp","ask_amount","ask_price","bid_price","bid_amount"]
[1731275346251,0.1209647,79699.0,79697.0,0.062696]
[1731275346455,0.04913849,79698.0,79697.0,0.062696]
[1731275347551,0.062697,79697.0,79691.0,0.06404872]
[1731275347755,0.062697,79697.0,79692.0,0.0627]
[1731275347756,0.04913849,79696.0,79692.0,0.0627]
[1731275347951,0.04859597,79695.0,79692.0,0.0627]
[1731275348160,0.04859597,79694.0,79692.0,0.02577175]
[1731275348451,0.0434,79697.0,79692.0,0.02577175]
[1731275348452,0.04859597,79693.0,79692.0,0.02577175]
[1731275348645,0.04859597,79696.0,79693.0,0.062699]
[1731275348841,0.04876889,79695.0,79692.0,0.25204931]
[1731275349042,0.04876889,79694.0,79693.0,0.062699]
[1731275349451,0.04876889,79694.0,79693.0,0.25138708]
[1731275351356,0.0434,79703.0,79698.0,0.062695]
[1731275351357,0.14755936,79703.0,79698.0,0.062695]
[1731275351560,0.10415936,79702.0,79693.0,0.18868808]
[1731275351745,0.10415936,79701.0,79691.0,0.42543707]
[1731275351946,0.10415936,79700.0,79699.0,0.062695]
[1731275352147,0.10415936,79702.0,79694.0,0.18723571]
[1731275352355,0.10415936,79701.0,79699.0,0.062695]
[1731275352556,0.04870199,79700.0,79699.0,0.3608]
[1731275352760,0.0434,79703.0,79701.0,0.062693]
[1731275352965,0.04901438,79702.0,79701.0,0.062693]
[1731275353271,0.15588,79715.0,79701.0,0.062693]
[1731275353272,0.10502474,79709.0,79701.0,0.18934454]
[1731275353449,0.10502474,79708.0,79702.0,0.0448]
[1731275353652,0.10504244,79707.0,79706.0,0.062689]
[1731275353861,0.0491149,79707.0,79706.0,0.062689]
[1731275354162,0.0491149,79707.0,79706.0,0.25011873]
[1731275354360,0.0491149,79707.0,79706.0,0.12457174]
[1731275354558,0.10512668,79711.0,79706.0,0.12457174]
[1731275354762,0.10512668,79710.0,79706.0,0.12457174]
[1731275354960,0.10512668,79709.0,79706.0,0.12457174]
[1731275355259,0.10512668,79708.0,79706.0,0.12457174]
[1731275355463,0.10512668,79707.0,79706.0,0.12457174]
[1731275355667,0.00188226,79722.0,79706.0,0.42282824]
[1731275355973,0.00188226,79722.0,79721.0,0.062677]
[1731275356460,0.00188226,79722.0,79721.0,0.29616902]
[1731275356655,0.3608,79733.0,79721.0,0.23349202]
[1731275356962,0.17317048,79732.0,79721.0,0.23349202]
[1731275357156,0.10726048,79731.0,79729.0,0.062671]
[1731275358262,0.06591,79732.0,79729.0,0.062671]
[1731275358463,0.06591,79732.0,79721.0,0.0441]
[1731275358464,0.06591,79732.0,79730.0,0.06267]
[1731275358768,0.05020194,79731.0,79730.0,0.06267]
[1731275359155,0.05020194,79731.0,79730.0,0.25195186]
[1731275359356,0.06591,79732.0,79730.0,0.25195186]
[1731275361757,0.06591,79732.0,79731.0,0.3608]
[1731275362163,0.06591,79732.0,79731.0,0.5486582]
[1731275364163,0.0445,79750.0,79731.0,0.5486582]
[1731275364164,0.0445,79750.0,79744.0,0.062659]
[1731275364359,0.05065911,79745.0,79744.0,0.062659]
[1731275364669,0.05065911,79745.0,79744.0,0.25033271]
[1731275364864,0.05065911,79745.0,79744.0,0.18767371]
[1731275365268,0.05065911,79745.0,79742.0,0.062661]
[1731275365468,0.05065911,79744.0,79743.0,0.18849518]
[1731275365666,0.05065911,79745.0,79742.0,0.062661]
[1731275365865,0.05065911,79744.0,79742.0,0.062661]
[1731275366074,0.062657,79747.0,79743.0,0.18849518]
[1731275366263,0.05071943,79745.0,79743.0,0.18849518]
[1731275366464,0.05071943,79744.0,79743.0,0.18849518]
[1731275366969,0.0445,79750.0,79736.0,0.062665]
[1731275367271,0.0445,79750.0,79737.0,0.18868068]
[1731275367272,0.05056549,79745.0,79737.0,0.18868068]
[1731275367473,0.0445,79750.0,79737.0,0.18868068]
[1731275367474,0.05056549,79744.0,79737.0,0.18868068]
[1731275367667,0.423464,79739.0,79737.0,0.18868068]
[1731275367874,0.062669,79733.0,79731.0,0.06327386]
[1731275368076,0.062669,79733.0,79719.0,0.1209647]
[1731275368077,0.48457614,79732.0,79718.0,0.00156964]
[1731275368281,0.062679,79719.0,79717.0,0.02853792]
[1731275368470,0.043,79718.0,79717.0,0.0901876]
[1731275368779,0.043,79718.0,79717.0,0.21754053]
[1731275369163,0.043,79718.0,79717.0,0.21597089]
[1731275369470,0.07364,79732.0,79717.0,0.21597089]
[1731275369673,0.03344,79732.0,79731.0,0.1209647]
[1731275370067,0.03344,79732.0,79731.0,0.31028116]
[1731275370374,0.08345701,79732.0,79731.0,0.31028116]
[1731275371177,0.08345701,79732.0,79731.0,0.37453329]
[1731275371972,0.03344,79732.0,79731.0,0.37453329]
[1731275372372,1e-08,79732.0,79731.0,0.37453329]
[1731275372769,1e-08,79732.0,79731.0,0.25356859]
[1731275375480,1e-08,79732.0,79731.0,0.37453329]
[1731275376678,0.3608,79743.0,79731.0,0.37453329]
[1731275376983,0.10868755,79742.0,79741.0,0.062662]
[1731275377375,0.10868755,79742.0,79741.0,0.25153926]
[1731275378494,0.05069215,79742.0,79741.0,0.25153926]
[1731275378786,0.02487365,79742.0,79741.0,0.25153926]
[1731275379485,0.05785727,79750.0,79748.0,0.062656]
[1731275379677,0.05785724,79749.0,79746.0,0.1209647]
[1731275379882,0.0791,79751.0,79746.0,0.1209647]
[1731275379883,0.05785724,79748.0,79747.0,0.062657]
[1731275380074,0.05785724,79748.0,79747.0,0.25089371]
[1731275381586,0.3608,79759.0,79747.0,0.74816111]
[1731275381782,0.00072,79775.0,79773.0,0.062636]
[1731275381985,0.3608,79777.0,79768.0,0.06264]
[1731275382186,0.3608,79777.0,79767.0,0.1209647]
[1731275382187,0.0409,79776.0,79774.0,0.18779994]
[1731275382485,0.3608,79777.0,79773.0,0.1209647]
[1731275382680,0.25,79782.0,79775.0,0.18852379]
[1731275382890,0.06912679,79781.0,79780.0,0.1209647]
[1731275383083,0.06912679,79781.0,79779.0,0.062631]
[1731275383292,0.25,79782.0,79780.0,0.18852379]
[1731275383689,0.04,79781.0,79780.0,0.18852379]
[1731275383987,0.04,79781.0,79777.0,0.18715594]
[1731275383988,0.062633,79778.0,79777.0,0.18715594]
[1731275384186,0.3608,79778.0,79773.0,0.06227495]
[1731275384388,0.3608,79778.0,79762.0,0.0642077]
[1731275384389,0.062637,79773.0,79762.0,0.0642077]
[1731275384581,0.3608,79770.0,79767.0,0.062641]
[1731275384782,0.3608,79770.0,79768.0,0.18729511]
[1731275385087,0.3608,79770.0,79767.0,0.062641]
[1731275385290,0.1209647,79768.0,79762.0,0.06125291]
[1731275385595,0.3608,79763.0,79751.0,0.00188074]
[1731275385797,0.102646,79762.0,79755.0,0.06265]
[1731275386092,0.062648,79759.0,79756.0,0.1872035]
[1731275386485,0.0415,79761.0,79756.0,0.1872035]
[1731275386486,0.062649,79758.0,79756.0,0.1872035]
[1731275386690,0.107435,79757.0,79756.0,0.1872035]
[1731275386884,0.107435,79757.0,79752.0,0.18725433]
[1731275387184,0.107435,79756.0,79751.0,0.00188074]
[1731275387390,0.05027733,79755.0,79754.0,0.062651]
[1731275387685,0.05027733,79755.0,79754.0,0.25092429]
[1731275389288,0.14911252,79761.0,79754.0,0.18827329]
[1731275389487,0.10761252,79760.0,79756.0,0.062649]
[1731275389894,0.10761252,79760.0,79757.0,0.18882292]
[1731275390290,0.17026052,79760.0,79757.0,0.18882292]
[1731275390596,0.17026052,79760.0,79755.0,0.18799104]
[1731275390597,0.10761252,79759.0,79755.0,0.18799104]
[1731275390800,0.10761252,79758.0,79755.0,0.18799104]
[1731275390992,0.10761252,79757.0,79754.0,0.02507987]
[1731275391195,0.062648,79760.0,79752.0,0.062653]
[1731275391196,0.46841252,79756.0,79752.0,0.06180308]
[1731275391394,0.062652,79754.0,79747.0,0.0627597]
[1731275391585,0.10761252,79753.0,79747.0,0.0627597]
[1731275391793,0.10761252,79752.0,79748.0,0.18692629]
[1731275391988,0.17026652,79751.0,79748.0,0.18692629]
[1731275392292,0.10761252,79750.0,79748.0,0.18692629]
[1731275392497,0.10761252,79749.0,79748.0,0.24958229]
[1731275393206,0.10761252,79749.0,79748.0,0.27466216]
[1731275393497,0.05027733,79749.0,79748.0,0.27466216]
[1731275395596,0.05027733,79749.0,79748.0,0.39562686]
[1731275395800,0.0415,79761.0,79748.0,0.21200616]
[1731275396095,0.0415,79761.0,79752.0,0.1209647]
[1731275396300,0.0415,79761.0,79753.0,0.062652]
[1731275396602,0.0415,79761.0,79754.0,0.062651]
[1731275396997,0.0415,79761.0,79755.0,0.18785224]
[1731275399497,0.11929747,79760.0,79755.0,0.25050224]
[1731275399803,0.05665047,79759.0,79755.0,0.06265]
[1731275400007,0.05665047,79759.0,79752.0,0.1209647]
[1731275400008,0.05665047,79758.0,79756.0,0.18887668]
[1731275400307,0.062647,79760.0,79756.0,0.06265]
[1731275400502,0.056565,79759.0,79756.0,0.06265]
[1731275400707,0.0415,79761.0,79752.0,0.06254089]
[1731275400708,0.062651,79756.0,79752.0,0.06254089]
[1731275400896,0.062651,79756.0,79753.0,0.062652]
[1731275401197,0.062651,79756.0,79754.0,0.18834897]
[1731275401402,0.062651,79756.0,79753.0,0.25100097]
[1731275401403,0.11906559,79755.0,79753.0,0.062652]
[1731275401707,0.05624271,79754.0,79753.0,0.062652]
[1731275402001,0.05624271,79754.0,79753.0,0.25110958]
[1731275403801,0.10579541,79754.0,79753.0,0.18845758]
[1731275404008,0.10578753,79754.0,79751.0,0.06361186]
[1731275404303,0.0415,79761.0,79752.0,0.2518304]
[1731275404304,0.10578753,79753.0,79752.0,0.2518304]
[1731275404503,0.10578753,79753.0,79752.0,0.3727951]
[1731275404699,0.10578753,79753.0,79752.0,0.1836177]
[1731275405292,0.10578753,79753.0,79752.0,0.37139783]
[1731275405500,0.10578753,79753.0,79752.0,0.73219783]
[1731275406296,0.04946328,79753.0,79752.0,1.22932253]
[1731275406508,0.04946328,79753.0,79752.0,1.10835783]
[1731275407002,0.0827,79769.0,79761.0,0.062646]
[1731275407003,0.17467291,79762.0,79761.0,0.062646]
[1731275407199,0.17467291,79762.0,79761.0,0.5444107]
[1731275407405,0.08724217,79762.0,79761.0,0.73258564]
[1731275407599,0.05707164,79762.0,79761.0,0.73258564]
[1731275407802,0.18726704,79779.0,79769.0,0.062639]
[1731275407999,0.18726704,79779.0,79771.0,0.1209647]
[1731275408000,0.05773582,79778.0,79771.0,0.1209647]
[1731275408304,0.05773582,79777.0,79773.0,0.062636]
[1731275408504,0.05773582,79776.0,79775.0,0.062635]
[1731275408703,0.05773582,79776.0,79775.0,0.1835997]
[1731275408902,0.05773582,79776.0,79775.0,0.37095836]
[1731275409204,0.05773582,79776.0,79775.0,0.86796306]
[1731275409418,0.22473372,79782.0,79780.0,0.062631]
[1731275409602,0.22473372,79782.0,79780.0,0.423431]
[1731275409910,0.22473372,79782.0,79781.0,0.18702748]
[1731275413410,0.22473372,79782.0,79769.0,0.00156567]
[1731275413411,0.062639,79770.0,79769.0,0.00156567]
[1731275413610,0.062643,79765.0,79753.0,0.3608]
[1731275413815,0.062643,79765.0,79762.0,0.06263066]
[1731275414002,0.06265,79757.0,79750.0,0.062654]
[1731275414202,0.1609647,79756.0,79744.0,0.062659]
[1731275414405,0.3608,79750.0,79747.0,0.06174311]
[1731275414605,0.423455,79750.0,79748.0,0.18798482]
[1731275414808,0.062656,79748.0,79747.0,0.0001027]
[1731275415213,0.36152,79750.0,79747.0,0.18922157]
[1731275415412,0.0480178,79749.0,79747.0,0.18922157]
[1731275415615,0.3608,79750.0,79747.0,0.18922157]
[1731275416105,0.3608,79750.0,79747.0,0.25187757]
[1731275416917,0.0480567,79749.0,79747.0,0.25187757]
[1731275417108,0.0480567,79748.0,79747.0,0.25187757]
[1731275418614,0.04,79756.0,79751.0,0.062653]
[1731275418820,0.04860814,79755.0,79751.0,0.062653]
[1731275419117,0.04860814,79754.0,79751.0,0.062653]
[1731275419321,0.04860814,79753.0,79751.0,0.062653]
[1731275419506,0.04860814,79752.0,79751.0,0.062653]
[1731275420114,0.04860814,79755.0,79751.0,0.062653]
[1731275420303,0.04860814,79754.0,79747.0,0.0001027]
[1731275420511,0.04860814,79753.0,79752.0,0.062653]
[1731275420911,0.10403491,79755.0,79752.0,0.062653]
[1731275421120,0.10403491,79754.0,79752.0,0.062653]
[1731275421425,0.04860814,79753.0,79752.0,0.062653]
[1731275422319,0.04865868,79755.0,79754.0,0.062652]
[1731275422619,0.0486645,79755.0,79754.0,0.062652]
[1731275423118,0.04,79756.0,79754.0,0.062652]
[1731275423319,0.04862882,79755.0,79754.0,0.062652]
[1731275423516,0.11127982,79755.0,79752.0,0.06340835]
[1731275423821,0.062655,79750.0,79747.0,0.0001027]
[1731275424018,0.3608,79749.0,79748.0,0.062656]
[1731275424212,0.04862882,79755.0,79748.0,0.18758805]
[1731275424817,0.04862882,79755.0,79753.0,0.062652]
[1731275425213,0.04862882,79755.0,79754.0,0.18903758]
[1731275425415,0.3608,79774.0,79773.0,0.062637]
[1731275426322,0.3608,79774.0,79768.0,0.06264]
[1731275426323,0.423436,79774.0,79768.0,0.06264]
[1731275426522,0.3608,79774.0,79762.0,0.0398]
[1731275426820,0.3608,79774.0,79769.0,0.1890845]
[1731275427020,0.3608,79774.0,79772.0,0.062637]
[1731275427417,0.3608,79774.0,79773.0,0.1890845]
[1731275427720,0.0413,79780.0,79773.0,0.1890845]
[1731275427915,0.0413,79780.0,79778.0,0.062632]
[1731275428517,0.0413,79780.0,79779.0,0.18768991]
[1731275430520,0.0413,79780.0,79779.0,0.2519269]
[1731275431925,0.0413,79780.0,79779.0,0.4355236]
[1731275432128,0.00188081,79781.0,79779.0,0.3145589]
[1731275434024,0.00188081,79781.0,79761.0,0.00156546]
[1731275434322,0.062644,79764.0,79762.0,0.0018806]
[1731275434516,0.0816,79763.0,79762.0,0.0018806]
[1731275434719,0.042,79763.0,79762.0,0.0018806]
[1731275434913,0.04824284,79763.0,79762.0,0.19094588]
[1731275435121,0.3608,79766.0,79764.0,0.062644]
[1731275435538,0.3608,79766.0,79765.0,0.18906528]
[1731275435715,0.41031647,79766.0,79765.0,0.18906528]
[1731275436132,0.3608,79773.0,79767.0,0.062641]
[1731275436428,0.04964501,79772.0,79770.0,0.062639]
[1731275436630,0.04964501,79771.0,79770.0,0.062639]
[1731275436827,0.3608,79773.0,79772.0,0.062637]
[1731275437127,0.41062379,79773.0,79772.0,0.24982126]
[1731275438127,0.3608,79773.0,79772.0,0.24982126]
[1731275439224,0.3608,79773.0,79772.0,0.31156133]
[1731275441229,0.3608,79773.0,79772.0,0.24892433]
[1731275441429,0.84290965,79773.0,79762.0,0.0025606]
[1731275441730,0.3608,79763.0,79762.0,0.0018806]
[1731275441935,0.46682965,79763.0,79762.0,0.06463337]
[1731275442129,0.46682965,79763.0,79762.0,0.0018806]
[1731275442324,0.54542965,79763.0,79762.0,0.0018806]
[1731275442834,0.54542965,79763.0,79747.0,0.0001027]
[1731275442835,1.32230663,79763.0,79747.0,0.0001027]
[1731275443133,0.423456,79748.0,79747.0,0.0001027]
[1731275443430,0.423456,79748.0,79747.0,0.0627597]
[1731275443431,0.41037896,79748.0,79747.0,0.0627597]
[1731275443734,0.41037896,79748.0,79747.0,0.25132007]
[1731275444641,0.3608,79755.0,79747.0,0.18866307]
[1731275444825,0.0484763,79754.0,79747.0,0.18866307]
[1731275445034,0.10371513,79753.0,79752.0,0.1836177]
[1731275445436,0.3608,79755.0,79753.0,0.25035902]
[1731275445626,0.10416482,79754.0,79753.0,0.062652]
[1731275445839,0.04869707,79754.0,79753.0,0.062652]
[1731275446030,0.3608,79765.0,79760.0,0.062647]
[1731275446031,0.423443,79765.0,79760.0,0.062647]
[1731275446232,0.10448555,79764.0,79760.0,0.062647]
[1731275446433,0.04885451,79763.0,79760.0,0.062647]
[1731275446642,0.04885451,79762.0,79760.0,0.062647]
[1731275446843,0.04885451,79761.0,79760.0,0.062647]
[1731275447037,0.3608,79765.0,79761.0,0.25136383]
[1731275447343,0.04916952,79764.0,79761.0,0.062646]
[1731275447527,0.3608,79765.0,79762.0,0.18871783]
[1731275447729,0.04917638,79764.0,79762.0,0.18871783]
[1731275447929,0.04917638,79764.0,79703.0,0.11168473]
[1731275447930,0.06265,79757.0,79752.0,0.062653]
[1731275448133,0.10517701,79756.0,79753.0,0.062652]
[1731275448330,0.10517701,79755.0,79753.0,0.062652]
[1731275448543,0.10517701,79754.0,79753.0,0.062652]
[1731275448937,0.10517701,79754.0,79750.0,0.062655]
[1731275449140,0.10517701,79753.0,79750.0,0.062655]
[1731275449443,0.04917638,79752.0,79751.0,0.18882092]
[1731275449837,0.11135874,79752.0,79751.0,0.18882092]
[1731275450640,0.062656,79749.0,79747.0,0.06192822]
[1731275450848,0.40907274,79748.0,79747.0,0.06192822]
[1731275451056,0.40907274,79748.0,79747.0,0.0001027]
[1731275451057,0.46406722,79748.0,79747.0,0.0001027]
[1731275451248,0.40907274,79748.0,79747.0,0.0001027]
[1731275451444,0.46401976,79748.0,79747.0,0.0001027]
[1731275451945,0.78527274,79748.0,79747.0,0.0001027]
[1731275452146,0.83969063,79748.0,79747.0,0.0001027]
[1731275452347,0.062664,79738.0,79732.0,0.00156921]
[1731275452551,0.062666,79737.0,79734.0,0.062667]
[1731275452754,0.04827274,79736.0,79734.0,0.062667]
[1731275452951,0.062666,79737.0,79734.0,0.062667]
[1731275452952,0.04827274,79735.0,79734.0,0.062667]
[1731275453349,0.04837544,79735.0,79734.0,0.062667]
[1731275453549,0.0001027,79735.0,79734.0,0.062667]
[1731275453758,0.0627697,79735.0,79733.0,9.163e-05]
[1731275454452,0.4972047,79734.0,79733.0,9.163e-05]
[1731275454647,0.062677,79722.0,79718.0,0.06456052]
[1731275454846,0.062678,79720.0,79718.0,0.00188152]
[1731275455050,0.062678,79720.0,79719.0,0.18690259]
[1731275455352,0.062678,79720.0,79718.0,0.06426361]
[1731275456655,0.3608,79722.0,79718.0,0.06426361]
[1731275456855,0.3608,79722.0,79721.0,0.1209647]
[1731275457253,0.3608,79722.0,79720.0,0.062678]
[1731275457553,0.062673,79727.0,79718.0,0.06238209]
[1731275457754,0.062673,79727.0,79722.0,0.062676]
[1731275459461,0.062673,79727.0,79719.0,0.1209647]
[1731275459757,0.3608,79728.0,79727.0,0.062673]
[1731275460156,0.3608,79728.0,79727.0,0.24995492]
[1731275460457,0.401,79738.0,79727.0,0.18728192]
[1731275460458,0.3608,79738.0,79727.0,0.18728192]
[1731275460652,0.3608,79738.0,79733.0,0.062668]
[1731275460853,0.3608,79741.0,79733.0,0.062668]
[1731275461157,0.423462,79741.0,79734.0,0.18937242]
[1731275461364,0.062665,79737.0,79734.0,0.18937242]
[1731275462464,0.062665,79737.0,79734.0,0.25072759]
[1731275463760,0.062666,79736.0,79734.0,0.25072759]
[1731275465170,0.3608,79741.0,79734.0,0.25072759]
[1731275465670,0.062663,79740.0,79734.0,0.25072759]
[1731275467164,0.3608,79741.0,79734.0,0.25072759]
[1731275467368,0.04763054,79740.0,79739.0,0.062663]
[1731275467567,0.04763054,79740.0,79734.0,0.25072759]
[1731275467568,0.062665,79737.0,79734.0,0.25072759]
[1731275467782,0.062665,79737.0,79734.0,0.06135517]
[1731275468065,0.3608,79743.0,79734.0,0.06135517]
[1731275468066,0.3608,79735.0,79734.0,0.02508644]
[1731275468457,0.40833367,79735.0,79734.0,0.21348142]
[1731275468661,0.3608,79735.0,79734.0,0.21348142]
[1731275468867,0.062666,79736.0,79734.0,0.21348142]
[1731275470468,0.423466,79736.0,79733.0,0.062668]
[1731275471357,0.423466,79736.0,79727.0,0.06234608]
[1731275471358,0.423466,79736.0,79727.0,0.18331078]
[1731275471555,0.3608,79736.0,79734.0,0.25008889]
[1731275471755,0.3608,79736.0,79734.0,0.062667]
[1731275472268,9.163e-05,79737.0,79735.0,0.25117416]
[1731275472563,9.163e-05,79737.0,79735.0,0.062666]
[1731275472969,9.163e-05,79737.0,79736.0,0.18912893]
[1731275475167,9.163e-05,79737.0,79729.0,0.423471]
[1731275475168,0.36089163,79737.0,79729.0,0.423471]
[1731275475373,0.36089163,79737.0,79729.0,0.062671]
[1731275475374,0.062668,79733.0,79729.0,0.062671]
[1731275475572,0.062669,79732.0,79730.0,0.18926885]
[1731275475772,0.062669,79732.0,79730.0,0.25193885]
[1731275476874,0.04757355,79731.0,79730.0,0.25193885]
[1731275477969,0.0411,79736.0,79733.0,0.062668]
[1731275478171,0.0411,79736.0,79734.0,0.062667]
[1731275478562,0.04764723,79735.0,79734.0,0.062667]
[1731275478969,0.0411,79736.0,79734.0,0.062667]
[1731275479571,0.04767841,79735.0,79734.0,0.062667]
[1731275481277,0.062669,79732.0,79729.0,0.06414552]
[1731275481575,0.20538458,79731.0,79730.0,0.18790063]
[1731275482071,0.20538458,79731.0,79727.0,0.06200311]
[1731275482072,0.062672,79728.0,79727.0,0.06200311]
[1731275482266,0.062672,79728.0,79722.0,0.062677]
[1731275482267,0.11035041,79728.0,79722.0,0.062677]
[1731275482468,0.04767841,79727.0,79724.0,0.18761055]
[1731275482666,0.04767841,79727.0,79722.0,0.062677]
[1731275482980,0.04767841,79727.0,79724.0,0.18756541]
[1731275483271,0.04767841,79727.0,79725.0,0.062674]
[1731275483478,0.04767841,79726.0,79725.0,0.062674]
[1731275483675,0.04767841,79730.0,79725.0,0.062674]
[1731275483866,0.04767841,79729.0,79725.0,0.062674]
[1731275484072,0.04767841,79728.0,79725.0,0.062674]
[1731275484267,0.04767841,79727.0,79725.0,0.062674]
[1731275484589,0.04767841,79726.0,79725.0,0.062674]
[1731275484776,0.04767841,79726.0,79722.0,0.06360242]
[1731275484974,0.04767841,79725.0,79719.0,0.062679]
[1731275485175,0.04767841,79724.0,79723.0,0.18882377]
[1731275485379,0.062673,79727.0,79722.0,0.02508934]
[1731275485569,0.04777032,79726.0,79725.0,0.062674]
[1731275485768,0.0812,79749.0,79743.0,0.06266]
[1731275486076,0.06470803,79756.0,79750.0,0.062655]
[1731275486275,0.06265,79757.0,79750.0,0.062655]
[1731275486473,0.3608,79759.0,79750.0,0.062655]
[1731275486674,0.06265,79756.0,79750.0,0.062655]
[1731275486874,0.3608,79752.0,79750.0,0.062655]
[1731275487277,0.05727073,79751.0,79750.0,0.062655]
[1731275488868,0.11992473,79751.0,79745.0,0.0418]
[1731275489069,0.05538926,79750.0,79746.0,0.062658]
[1731275489274,0.05538926,79749.0,79746.0,0.25190982]
[1731275489477,0.062657,79747.0,79745.0,0.06379592]
[1731275489675,0.05538926,79748.0,79740.0,0.062662]
[1731275489676,0.062661,79742.0,79740.0,0.062662]
[1731275489869,0.05538926,79741.0,79740.0,0.12536027]
[1731275490073,0.05538926,79741.0,79740.0,0.062662]
[1731275490380,0.05538926,79741.0,79740.0,0.24999795]
[1731275491272,0.423453,79752.0,79749.0,0.062655]
[1731275491474,0.0552124,79751.0,79749.0,0.062655]
[1731275491675,0.0552124,79750.0,79749.0,0.062655]
[1731275492881,0.36152,79752.0,79750.0,0.062654]
[1731275492882,0.3608,79752.0,79750.0,0.062654]
[1731275493067,0.3608,79752.0,79741.0,0.0426]
[1731275493068,0.3608,79752.0,79751.0,0.062654]
[1731275493269,0.41606507,79752.0,79751.0,0.062654]
[1731275493781,0.46460595,79752.0,79751.0,0.25058045]
[1731275494169,0.5298461,79752.0,79751.0,0.25058045]
[1731275495478,0.46460595,79752.0,79751.0,0.25058045]
[1731275495680,0.44445615,79752.0,79751.0,0.25058045]
[1731275496078,0.10380595,79752.0,79751.0,0.61138045]
[1731275496276,0.00188113,79768.0,79765.0,0.062643]
[1731275496474,0.00188113,79768.0,79767.0,0.062641]
[1731275496675,0.00188113,79768.0,79767.0,0.06277196]
[1731275496878,0.00188113,79768.0,79767.0,0.24977624]
[1731275497478,0.22473372,79782.0,79781.0,0.06263]
[1731275497884,0.22473372,79782.0,79781.0,0.25047056]
[1731275498282,0.22473372,79782.0,79781.0,0.18784056]
[1731275498683,0.22473372,79782.0,79778.0,0.18720137]
[1731275498878,0.22473372,79782.0,79781.0,0.18896842]
[1731275499286,0.22473372,79782.0,79779.0,0.18896842]
[1731275499488,0.22473372,79782.0,79774.0,0.062635]
[1731275499789,0.22473372,79782.0,79780.0,0.18896842]
[1731275499983,0.22473372,79782.0,79774.0,0.06153247]
[1731275500185,0.22473372,79782.0,79776.0,0.062634]
[1731275500394,0.22473372,79782.0,79776.0,0.25119151]
[1731275500578,0.22473372,79782.0,79776.0,0.062634]
[1731275500976,0.22473372,79782.0,79777.0,0.18846563]
[1731275502080,0.22473372,79782.0,79777.0,0.0615262]
[1731275502280,0.22473372,79782.0,79778.0,0.18803896]
[1731275502685,0.22473372,79782.0,79771.0,0.18803896]
[1731275502884,0.22473372,79782.0,79779.0,0.18837061]
[1731275503079,0.22473372,79782.0,79778.0,0.062632]
[1731275503382,0.22473372,79782.0,79780.0,0.062631]
[1731275503984,0.22473372,79782.0,79781.0,0.18924445]
[1731275504385,0.27300399,79782.0,79781.0,0.18924445]
[1731275504591,0.22473372,79782.0,79781.0,0.18924445]
[1731275507187,0.22473372,79782.0,79781.0,0.25036545]
[1731275509795,0.22473372,79782.0,79781.0,0.40452545]
[1731275513079,0.17720663,79782.0,79781.0,0.40452545]
[1731275514999,0.17720663,79782.0,79781.0,0.25036545]
[1731275515196,0.17720663,79782.0,79781.0,0.40452545]
[1731275515590,0.17720663,79782.0,79781.0,0.25036545]
[1731275516397,0.23983663,79782.0,79781.0,0.25036545]
[1731275516597,0.28788437,79782.0,79781.0,0.25036545]
[1731275516794,0.22525437,79782.0,79781.0,0.25036545]
[1731275518398,0.27961684,79782.0,79781.0,0.25036545]
[1731275518593,0.1209647,79789.0,79781.0,0.25036545]
[1731275518594,0.10072,79800.0,79781.0,1.11391304]
[1731275518799,0.10072,79800.0,79798.0,0.062617]
[1731275518800,0.0480772,79799.0,79798.0,0.062617]
[1731275519193,0.0480772,79799.0,79798.0,0.25060669]
[1731275519803,0.0480772,79799.0,79798.0,0.18798969]
[1731275519999,0.0899772,79799.0,79798.0,0.18798969]
[1731275520194,0.0480772,79799.0,79794.0,0.24966071]
[1731275520394,0.0480772,79799.0,79774.0,0.3666]
[1731275520395,0.062619,79795.0,79787.0,0.062625]
[1731275520606,0.062619,79795.0,79788.0,0.062624]
[1731275520803,0.4608,79800.0,79794.0,0.18704071]
[1731275521105,0.03738101,79800.0,79799.0,0.3608]
[1731275521497,0.03738101,79800.0,79799.0,0.54913466]
[1731275522312,0.3608,79818.0,79817.0,0.062602]
[1731275522701,0.3608,79818.0,79817.0,0.25053939]
[1731275523203,0.3608,79825.0,79820.0,0.062599]
[1731275523711,0.062597,79823.0,79821.0,0.18737499]
[1731275523910,0.062597,79823.0,79817.0,0.06135027]
[1731275523911,0.062599,79821.0,79812.0,0.1209647]
[1731275524102,0.05572558,79820.0,79818.0,0.25173215]
[1731275524301,0.3608,79825.0,79823.0,0.062597]
[1731275524607,0.05583032,79824.0,79820.0,0.3608]
[1731275524909,0.05583032,79823.0,79821.0,0.18807365]
[1731275525106,0.103497,79824.0,79821.0,0.18807365]
[1731275525303,0.103497,79824.0,79820.0,0.18807365]
[1731275525499,0.0409,79824.0,79822.0,0.18807365]
[1731275525707,0.07221,79824.0,79822.0,0.18807365]
[1731275525910,0.423397,79823.0,79821.0,0.18807365]
[1731275526099,0.423397,79823.0,79819.0,0.0250591]
[1731275526408,0.062602,79817.0,79815.0,0.18803813]
[1731275526705,0.062604,79815.0,79814.0,0.18803813]
[1731275526910,0.16584477,79815.0,79814.0,0.18803813]
[1731275527105,0.16584477,79815.0,79805.0,0.1209647]
[1731275527411,0.3608,79816.0,79805.0,0.1209647]
[1731275527412,0.3608,79816.0,79814.0,0.27659959]
[1731275527703,0.10301583,79815.0,79814.0,0.0876631]
[1731275527903,0.05135,79824.0,79822.0,0.062598]
[1731275528099,0.04837362,79823.0,79822.0,0.062598]
[1731275528299,0.05532757,79823.0,79822.0,0.062598]
[1731275528500,0.10370119,79823.0,79822.0,0.25020982]
[1731275529500,0.10370119,79823.0,79822.0,0.31274482]
[1731275529702,0.04837362,79823.0,79822.0,0.84234482]
[1731275529901,0.04837362,79823.0,79822.0,0.46650482]
[1731275531105,0.04837362,79823.0,79822.0,0.31274482]
[1731275531314,0.04837362,79823.0,79822.0,0.46650482]
[1731275532317,0.01857777,79823.0,79822.0,0.46650482]
[1731275532515,0.01857777,79823.0,79822.0,0.31274482]
[1731275532815,0.01857777,79823.0,79822.0,0.25014682]
[1731275533010,0.11573489,79823.0,79822.0,0.25014682]
[1731275533206,0.34271943,79823.0,79822.0,0.11231091]
[1731275533411,0.22175473,79823.0,79822.0,0.11231091]
[1731275534517,0.18075473,79823.0,79822.0,0.11231091]
[1731275534819,0.06057777,79823.0,79822.0,0.11231091]
[1731275536010,0.42137777,79823.0,79822.0,0.11231091]
[1731275536407,0.37937777,79823.0,79822.0,0.11231091]
[1731275537316,0.43262864,79823.0,79822.0,0.11231091]